lending/lending_fUSD_20251124
["ID","MTS","AMOUNT","RATE_DAILY","PERIOD"]
[394820235,1763985033023,-500.0,0.00017999,2]
[394820236,1763985033032,-500.0,0.00017999,2]
[394820237,1763985033042,-500.0,0.00017999,2]
[394820238,1763985033052,-500.0,0.00017999,2]
[394820239,1763985033062,-500.0,0.00017999,2]
[394820240,1763985033072,-500.0,0.00017999,2]
[394820241,1763985033082,-500.0,0.00017999,2]
[394820242,1763985033092,-500.0,0.00017999,2]
[394820243,1763985033102,-500.0,0.00017999,2]
[394820244,1763985033111,-500.0,0.00017999,2]
[394820245,1763985033120,-500.0,0.00017999,2]
[394820246,1763985033130,-500.0,0.00017999,2]
[394820247,1763985033139,-477.28801235,0.00017999,2]
[394820248,1763985033149,-500.0,0.00017999,2]
[394820249,1763985033161,-500.0,0.00017999,2]
[394820250,1763985033171,-500.0,0.00017999,2]
[394820251,1763985033181,-222.87710517,0.00017999,2]
[394820252,1763985033190,-500.0,0.00017999,2]
[394820253,1763985033200,-500.0,0.00017999,2]
[394820254,1763985033209,-500.0,0.00017999,2]
[394820255,1763985033219,-500.0,0.00017999,2]
[394820256,1763985033228,-500.0,0.00017999,2]
[394820257,1763985033237,-500.0,0.00017999,2]
[394820258,1763985033247,-500.0,0.00017999,2]
[394820259,1763985033257,-500.0,0.00017999,2]
[394820260,1763985033266,-500.0,0.00017999,2]
[394820261,1763985033276,-306.55248542,0.00017999,2]
[394820262,1763985033286,-500.0,0.00017999,2]
[394820263,1763985033296,-500.0,0.00017999,2]
[394820264,1763985033306,-500.0,0.00017999,2]
[394820265,1763985033315,-500.0,0.00017999,2]
[394820266,1763985033326,-500.0,0.00017999,2]
[394820267,1763985033336,-292.68,0.00017999,2]
[394820268,1763985033345,-500.0,0.00017999,2]
[394820269,1763985033355,-500.0,0.00017999,2]
[394820270,1763985033364,-500.0,0.00017999,2]
[394820271,1763985033374,-174.57945306,0.00017999,2]
[394820272,1763985033383,-500.0,0.00017999,2]
[394820273,1763985033396,-500.0,0.00017999,2]
[394820274,1763985033407,-500.0,0.00017999,2]
[394820275,1763985033417,-500.0,0.00017999,2]
[394820276,1763985033426,-500.0,0.00017999,2]
[394820277,1763985033436,-500.0,0.00017999,2]
[394820278,1763985033446,-500.0,0.00017999,2]
[394820279,1763985033455,-500.0,0.00017999,2]
[394820280,1763985033468,-500.0,0.00017999,2]
[394820281,1763985033478,-500.0,0.00017999,2]
[394820282,1763985033488,-500.0,0.00017999,2]
[394820283,1763985033498,-500.0,0.00017999,2]
[394820284,1763985033510,-500.0,0.00017999,2]
[394820285,1763985033524,-500.0,0.00017999,2]
[394820286,1763985033537,-500.0,0.00017999,2]
[394820287,1763985033548,-500.0,0.00017999,2]
[394820288,1763985033558,-500.0,0.00017999,2]
[394820289,1763985033568,-500.0,0.00017999,2]
[394820290,1763985033578,-500.0,0.00017999,2]
[394820291,1763985033588,-500.0,0.00017999,2]
[394820292,1763985033597,-500.0,0.00017999,2]
[394820293,1763985033607,-384.92,0.00017999,2]
[394820294,1763985033616,-1172.53,0.00017999,2]
[394820295,1763985033625,-500.0,0.00017999,2]
[394820296,1763985033635,-193.109424,0.00017999,2]
[394820297,1763985033644,-500.0,0.00017999,2]
[394820298,1763985033654,-500.0,0.00017999,2]
[394820299,1763985033663,-155.42419926,0.00017999,2]
[394820300,1763985033673,-500.0,0.00017999,2]
[394820301,1763985033682,-176.90349296,0.00017999,2]
[394820302,1763985033693,-500.0,0.00017999,2]
[394820303,1763985033703,-500.0,0.00017999,2]
[394820304,1763985033712,-499.64100407,0.00017999,2]
[394820305,1763985033723,-500.0,0.00017999,2]
[394820306,1763985033733,-214.59194501,0.00017999,2]
[394820307,1763985033743,-500.0,0.00017999,2]
[394820308,1763985033753,-500.0,0.00017999,2]
[394820309,1763985033762,-500.0,0.00017999,2]
[394820310,1763985033772,-500.0,0.00017999,2]
[394820311,1763985033782,-500.0,0.00017999,2]
[394820312,1763985033795,-500.0,0.00017999,2]
[394820313,1763985033805,-500.0,0.00017999,2]
[394820314,1763985033815,-500.0,0.00017999,2]
[394820315,1763985033825,-500.0,0.00017999,2]
[394820316,1763985033834,-500.0,0.00017999,2]
[394820317,1763985033843,-500.0,0.00017999,2]
[394820318,1763985033853,-500.0,0.00017999,2]
[394820319,1763985033863,-500.0,0.00017999,2]
[394820320,1763985033874,-500.0,0.00017999,2]
[394820321,1763985033884,-500.0,0.00017999,2]
[394820322,1763985033893,-500.0,0.00017999,2]
[394820323,1763985033903,-500.0,0.00017999,2]
[394820324,1763985033912,-500.0,0.00017999,2]
[394820325,1763985033923,-500.0,0.00017999,2]
[394820326,1763985033933,-500.0,0.00017999,2]
[394820327,1763985033944,-500.0,0.00017999,2]
[394820328,1763985033954,-500.0,0.00017999,2]
[394820329,1763985033964,-500.0,0.00017999,2]
[394820330,1763985033975,-500.0,0.00017999,2]
[394820331,1763985033985,-500.0,0.00017999,2]
[394820332,1763985033995,-500.0,0.00017999,2]
[394820333,1763985034006,-500.0,0.00017999,2]
[394820334,1763985034026,-500.0,0.00017999,2]
[394820335,1763985034035,-500.0,0.00017999,2]
[394820336,1763985034044,-500.0,0.00017999,2]
[394820337,1763985034249,-500.0,0.00017999,2]
[394820338,1763985034260,-500.0,0.00017999,2]
[394820339,1763985034270,-500.0,0.00017999,2]
[394820340,1763985034280,-500.0,0.00017999,2]
[394820341,1763985034289,-138.29039809,0.00017999,2]
[394820342,1763985037410,-150.0,0.00016999,2]
[394820343,1763985037420,-150.0,0.00016999,2]
[394820344,1763985037429,-150.0,0.00016999,2]
[394820345,1763985037438,-157.68908016,0.00017136,2]
[394820346,1763985037448,-150.0,0.00017136,2]
[394820347,1763985037457,-150.0,0.00017136,2]
[394820348,1763985037470,-200.0,0.00017273,2]
[394820349,1763985037479,-217.0,0.00017911,2]
[394820350,1763985037488,-361.70960191,0.00017999,2]
[394820351,1763985037498,-500.0,0.00017999,2]
[394820352,1763985037509,-500.0,0.00017999,2]
[394820353,1763985037518,-500.0,0.00017999,2]
[394820354,1763985037528,-500.0,0.00017999,2]
[394820355,1763985037538,-500.0,0.00017999,2]
[394820356,1763985037550,-500.0,0.00017999,2]
[394820357,1763985037559,-318.53639137,0.00017999,2]
[394820358,1763985037572,-181.46360863,0.00017999,2]
[394820359,1763985037581,-319.7154276,0.00017999,2]
[394820360,1763985037592,-180.2845724,0.00017999,2]
[394820361,1763985037602,-184.92349148,0.00017999,2]
[394820362,1763985037611,-500.0,0.00017999,2]
[394820363,1763985037621,-500.0,0.00017999,2]
[394820364,1763985037630,-111.21193612,0.00017999,2]
[394820365,1763985037671,-388.78806388,0.00017999,2]
[394820366,1763985037681,-500.0,0.00017999,2]
[394820367,1763985037691,-500.0,0.00017999,2]
[394820368,1763985037701,-500.0,0.00017999,2]
[394820369,1763985037711,-500.0,0.00017999,2]
[394820370,1763985037721,-500.0,0.00017999,2]
[394820371,1763985037732,-500.0,0.00017999,2]
[394820372,1763985037742,-500.0,0.00017999,2]
[394820373,1763985037752,-500.0,0.00017999,2]
[394820374,1763985037761,-500.0,0.00017999,2]
[394820375,1763985037770,-500.0,0.00017999,2]
[394820376,1763985037780,-442.83240988,0.00017999,2]
[394820377,1763985037789,-500.0,0.00017999,2]
[394820378,1763985037798,-500.0,0.00017999,2]
[394820379,1763985037807,-500.0,0.00017999,2]
[394820380,1763985037817,-456.30830756,0.00017999,2]
[394820381,1763985037826,-500.0,0.00017999,2]
[394820382,1763985037835,-500.0,0.00017999,2]
[394820385,1763985037844,-500.0,0.00017999,2]
[394820388,1763985037854,-500.0,0.00017999,2]
[394820391,1763985037863,-500.0,0.00017999,2]
[394820393,1763985037871,-500.0,0.00017999,2]
[394820395,1763985037881,-204.46661325,0.00017999,2]
[394820397,1763985037892,-295.53338675,0.00017999,2]
[394820399,1763985037901,-500.0,0.00017999,2]
[394820401,1763985037910,-500.0,0.00017999,2]
[394820403,1763985037919,-500.0,0.00017999,2]
[394820405,1763985037929,-500.0,0.00017999,2]
[394820407,1763985037938,-500.0,0.00017999,2]
[394820409,1763985037947,-500.0,0.00017999,2]
[394820411,1763985037956,-500.0,0.00017999,2]
[394820413,1763985037966,-500.0,0.00017999,2]
[394820415,1763985037975,-500.0,0.00017999,2]
[394820417,1763985037984,-500.0,0.00017999,2]
[394820419,1763985037993,-500.0,0.00017999,2]
[394820421,1763985038002,-500.0,0.00017999,2]
[394820423,1763985038011,-500.0,0.00017999,2]
[394820425,1763985038020,-500.0,0.00017999,2]
[394820427,1763985038030,-500.0,0.00017999,2]
[394820429,1763985038039,-500.0,0.00017999,2]
[394820431,1763985038049,-500.0,0.00017999,2]
[394820433,1763985038059,-500.0,0.00017999,2]
[394820435,1763985038069,-500.0,0.00017999,2]
[394820438,1763985038079,-500.0,0.00017999,2]
[394820439,1763985038088,-211.54601364,0.00017999,2]
[394820442,1763985038100,-288.45398636,0.00017999,2]
[394820444,1763985038109,-500.0,0.00017999,2]
[394820446,1763985038118,-500.0,0.00017999,2]
[394820448,1763985038127,-500.0,0.00017999,2]
[394820450,1763985038136,-500.0,0.00017999,2]
[394820452,1763985038146,-500.0,0.00017999,2]
[394820454,1763985038155,-500.0,0.00017999,2]
[394820456,1763985038165,-500.0,0.00017999,2]
[394820458,1763985038174,-92.07936345,0.00017999,2]
[394820460,1763985038191,-351.88118535,0.00017999,2]
[394820463,1763985038204,-56.0394512,0.00017999,2]
[394820465,1763985038214,-500.0,0.00017999,2]
[394820467,1763985038223,-500.0,0.00017999,2]
[394820468,1763985038232,-64.39345007,0.00017999,2]
[394820469,1763985038245,-435.60654993,0.00017999,2]
[394820470,1763985038254,-42.77236298,0.00017999,2]
[394820471,1763985038271,-457.22763702,0.00017999,2]
[394820472,1763985038281,-500.0,0.00017999,2]
[394820473,1763985038291,-500.0,0.00017999,2]
[394820474,1763985038301,-500.0,0.00017999,2]
[394820475,1763985038310,-500.0,0.00017999,2]
[394820476,1763985038320,-256.06426424,0.00017999,2]
[394820477,1763985038330,-500.0,0.00017999,2]
[394820478,1763985038340,-500.0,0.00017999,2]
[394820479,1763985038349,-500.0,0.00017999,2]
[394820480,1763985038359,-514.58630475,0.00017999,2]
[394820481,1763985038369,-500.0,0.00017999,2]
[394820482,1763985038379,-500.0,0.00017999,2]
[394820483,1763985038389,-500.0,0.00017999,2]
[394820484,1763985038399,-500.0,0.00017999,2]
[394820485,1763985038408,-219.84632764,0.00018,2]
[394820486,1763985038418,-413.95611827,0.00018,2]
[394820487,1763985038429,-99370.19058164,0.00018,2]
[394820488,1763985038441,-4141.776292,0.00018,2]
[394820489,1763985038453,-619.3089963,0.00018,2]
[394820490,1763985038469,-7477.4,0.00018,2]
[394820491,1763985038488,-499.98868071,0.00018,2]
[394820496,1763985039454,-150.0,0.00016999,2]
[394820497,1763985039467,-150.0,0.00017136,2]
[394820498,1763985039476,-50517.105491,0.00018,2]
[394820499,1763985039507,-9360.27864207,0.00018,2]
[394820500,1763985039519,-263.09305586,0.00018,2]
[394820501,1763985039614,-150.0,0.00017273,2]
[394820502,1763985039781,-514748.12645692,0.00018,2]
[394820503,1763985039796,-4012.1106964,0.00018,2]
[394820504,1763985039831,-150.0,0.0001741,2]
[394820505,1763985039841,-675.50799738,0.00018,2]
[394820506,1763985039864,-3230434.24311032,0.00018,2]
[394820519,1763985043013,-153.3100467,0.00016999,2]
[394820521,1763985043023,-150.0,0.00016999,2]
[394820522,1763985043032,-150.0,0.00017136,2]
[394820523,1763985043042,-150.0,0.00017273,2]
[394820524,1763985043052,-150.0,0.0001741,2]
[394820525,1763985043062,-250.0,0.00017547,2]
[394820526,1763985043072,-250.0,0.00017547,2]
[394820527,1763985043081,-864.62308604,0.00018,2]
[394820528,1763985043093,-424.75182144,0.00018,2]
[394820529,1763985043104,-295.38614182,0.00018,2]
[394820530,1763985043116,-729.36723541,0.00018,2]
[394820568,1763985045524,-150.49285103,0.00016999,2]
[394820569,1763985045533,-1148.59249466,0.00018,2]
[394820570,1763985045544,-986.89522002,0.00018,2]
[394820571,1763985045627,-1693.178389,0.00018,2]
[394820573,1763985630870,156.16,8.435e-05,2]
[394820574,1763985631072,156.16,8.962e-05,2]
[394820575,1763985631271,156.16,9.489e-05,2]
[394820576,1763985631489,156.16,0.00010016,2]
[394820577,1763985631694,156.16,0.00010543,2]
[394820578,1763985632104,156.16,0.00011071,2]
[394820579,1763985632312,156.16,0.00011598,2]
[394820580,1763985632535,156.16,0.00012125,2]
[394820581,1763985632758,156.16,0.00012652,2]
[394820582,1763985632961,156.16,0.00013179,2]
[394820583,1763985633171,156.16,0.00013706,2]
[394820584,1763985633372,156.16,0.00014234,2]
[394820585,1763985633790,156.16,0.00014761,2]
[394820586,1763985633841,156.16,0.00015288,2]
[394820587,1763985633982,156.16,0.00015815,2]
[394820588,1763985634199,151.907598,0.00016342,2]
[394820589,1763985634291,-4.252402,0.00016342,2]
[394820591,1763986092482,-179.0,0.00016199,2]
[394820592,1763986092503,-300.0,0.00016199,2]
[394820593,1763986092523,-294.21526007,0.000162,2]
[394820594,1763986092544,-200.39449813,0.000162,2]
[394820595,1763986092564,-241.69821507,0.000162,2]
[394820596,1763986092585,-150.0,0.000162,2]
[394820597,1763986092606,-276.17380073,0.000162,2]
[394820598,1763986092628,-150.0,0.000162,2]
[394820599,1763986092649,-230.11800003,0.000162,2]
[394820600,1763986092670,-3245.76,0.00016438,2]
[394820601,1763986092692,-191.01,0.00016712,2]
[394820602,1763986092714,-150.0,0.00016814,2]
[394820603,1763986092735,-2751.0,0.00016843,2]
[394820604,1763986092756,-4784.09,0.00016858,2]
[394820605,1763986092778,-1200.0,0.00016867,2]
[394820606,1763986092799,-300.0,0.00016868,2]
[394820607,1763986092821,-200.0,0.00016868,2]
[394820608,1763986092844,-5846.82322597,0.00016869,2]
[394820611,1763986231654,-166.66,0.00016075,2]
[394820612,1763986231664,-166.66,0.00016414,2]
[394820613,1763986231673,-166.66,0.00016752,2]
[394820614,1763986231682,-30.79777805,0.00016869,2]
[394820615,1763986231961,-1246.01731037,0.00016869,2]
[394820616,1763986231972,-250.0,0.00016869,2]
[394820617,1763986231983,-396.09815507,0.00016869,2]
[394820618,1763986232008,-3690.08353054,0.00016869,2]
[394820619,1763986232029,-156.16,0.0001687,2]
[394820620,1763986232040,-1600.0,0.0001689,2]
[394820621,1763986232050,-150.0,0.00016982,2]
[394820622,1763986232059,-1200.0,0.00017014,2]
[394820623,1763986232068,-500.0,0.00017015,2]
[394820624,1763986232078,-166.66,0.00017091,2]
[394820625,1763986232087,-300.0,0.00017098,2]
[394820626,1763986232097,-199.07035695,0.00017099,2]
[394820627,1763986232106,-693.3919763,0.00017099,2]
[394820628,1763986232116,-398.14729164,0.00017099,2]
[394820629,1763986232125,-150.0,0.000171,2]
[394820630,1763986232135,-150.0,0.00017113,2]
[394820631,1763986232144,-2019.0,0.00017216,2]
[394820632,1763986232154,-166.66,0.00017429,2]
[394820634,1763986232163,-410.0,0.000176,2]
[394820637,1763986232172,-756.83932866,0.00017704,2]
[394820638,1763986232182,-166.66,0.00017768,2]
[394820641,1763986232192,-150.0,0.00017821,2]
[394820643,1763986232202,-150.50043881,0.00017821,2]
[394820645,1763986232211,-152.26759261,0.00017821,2]
[394820647,1763986232221,-150.0,0.00017821,2]
[394820649,1763986232230,-500.0,0.00017821,2]
[394820651,1763986232239,-550.0,0.00017888,2]
[394820653,1763986232249,-1098.33760372,0.00017888,2]
[394820655,1763986232259,-1000.0,0.00017888,2]
[394820657,1763986232268,-1185.64,0.00017889,2]
[394820659,1763986232277,-150.0,0.00017889,2]
[394820660,1763986232287,-150.0,0.00017889,2]
[394820662,1763986232296,-150.0,0.00017889,2]
[394820665,1763986232305,-500.0,0.00017889,2]
[394820666,1763986232314,-152.48174013,0.00017889,2]
[394820669,1763986232324,-500.0,0.00017889,2]
[394820670,1763986232333,-500.0,0.00017889,2]
[394820672,1763986232342,-500.0,0.00017889,2]
[394820674,1763986232351,-500.0,0.00017889,2]
[394820676,1763986232360,-150.0,0.00017889,2]
[394820678,1763986232369,-500.0,0.00017889,2]
[394820679,1763986232378,-500.0,0.00017889,2]
[394820682,1763986232388,-150.0,0.00017889,2]
[394820684,1763986232397,-150.0,0.00017889,2]
[394820685,1763986232407,-500.0,0.00017889,2]
[394820687,1763986232416,-150.0,0.00017889,2]
[394820689,1763986232425,-150.0,0.00017889,2]
[394820692,1763986232435,-500.0,0.00017889,2]
[394820694,1763986232444,-500.0,0.00017889,2]
[394820696,1763986232453,-151.0,0.00017889,2]
[394820698,1763986232463,-151.0,0.00017889,2]
[394820700,1763986232472,-151.0,0.00017889,2]
[394820702,1763986232482,-151.0,0.00017889,2]
[394820704,1763986232491,-151.0,0.00017889,2]
[394820706,1763986232500,-151.0,0.00017889,2]
[394820708,1763986232509,-151.0,0.00017889,2]
[394820710,1763986232518,-151.0,0.00017889,2]
[394820711,1763986232528,-151.0,0.00017889,2]
[394820713,1763986232537,-151.0,0.00017889,2]
[394820715,1763986232546,-151.0,0.00017889,2]
[394820718,1763986232556,-151.0,0.00017889,2]
[394820720,1763986232566,-500.0,0.00017889,2]
[394820722,1763986232575,-151.0,0.00017889,2]
[394820723,1763986232585,-475.70981304,0.00017889,2]
[394820725,1763986232595,-500.0,0.00017889,2]
[394820726,1763986232604,-151.0,0.00017889,2]
[394820728,1763986232614,-500.0,0.00017889,2]
[394820729,1763986232623,-151.0,0.00017889,2]
[394820730,1763986232633,-500.0,0.00017889,2]
[394820731,1763986232643,-151.0,0.00017889,2]
[394820732,1763986232652,-250.0,0.00017889,2]
[394820733,1763986232662,-500.0,0.00017889,2]
[394820734,1763986232671,-151.0,0.00017889,2]
[394820735,1763986232680,-250.0,0.00017889,2]
[394820736,1763986232692,-500.0,0.00017889,2]
[394820737,1763986232702,-151.0,0.00017889,2]
[394820738,1763986232712,-265.93214898,0.00017889,2]
[394820739,1763986232721,-500.0,0.00017889,2]
[394820740,1763986232731,-500.0,0.00017889,2]
[394820741,1763986232741,-151.0,0.00017889,2]
[394820742,1763986232750,-500.0,0.00017889,2]
[394820743,1763986232760,-151.0,0.00017889,2]
[394820744,1763986232769,-500.0,0.00017889,2]
[394820745,1763986232779,-500.0,0.00017889,2]
[394820746,1763986232788,-500.0,0.00017889,2]
[394820747,1763986232799,-620.0,0.00017889,2]
[394820748,1763986232809,-500.0,0.00017889,2]
[394820749,1763986232819,-500.0,0.00017889,2]
[394820750,1763986232828,-537.06884642,0.00017889,2]
[394820751,1763986232838,-500.0,0.00017889,2]
[394820752,1763986232848,-500.0,0.00017889,2]
[394820753,1763986232861,-500.0,0.00017889,2]
[394820754,1763986232870,-500.0,0.00017889,2]
[394820755,1763986232879,-500.0,0.00017889,2]
[394820756,1763986232890,-500.0,0.00017889,2]
[394820757,1763986232899,-500.0,0.00017889,2]
[394820758,1763986232909,-500.0,0.00017889,2]
[394820759,1763986232919,-500.0,0.00017889,2]
[394820760,1763986232928,-500.0,0.00017889,2]
[394820761,1763986232941,-500.0,0.00017889,2]
[394820762,1763986232951,-500.0,0.00017889,2]
[394820763,1763986232960,-500.0,0.00017889,2]
[394820764,1763986232970,-500.0,0.00017889,2]
[394820765,1763986232980,-500.0,0.00017889,2]
[394820766,1763986232989,-500.0,0.00017889,2]
[394820767,1763986232999,-500.0,0.00017889,2]
[394820768,1763986233008,-500.0,0.00017889,2]
[394820769,1763986233018,-500.0,0.00017889,2]
[394820770,1763986233030,-500.0,0.00017889,2]
[394820771,1763986233047,-500.0,0.00017889,2]
[394820772,1763986233057,-500.0,0.00017889,2]
[394820773,1763986233067,-1000.0,0.00017899,2]
[394820774,1763986233077,-3016.3934579,0.000179,2]
[394820775,1763986233087,-6907.50687105,0.000179,2]
[394820776,1763986233099,-157.68004741,0.000179,2]
[394820777,1763986233110,-166.08476855,0.000179,2]
[394820778,1763986233119,-285.27774158,0.000179,2]
[394820779,1763986233129,-150.0,0.000179,2]
[394820780,1763986233138,-33945.30170287,0.000179,2]
[394820781,1763986233148,-504.1311562,0.000179,2]
[394820782,1763986233158,-196.77454208,0.000179,2]
[394820783,1763986233167,-699.60948716,0.000179,2]
[394820784,1763986233178,-1173.31373118,0.000179,2]
[394820785,1763986233189,-150.0,0.00017958,2]
[394820786,1763986233198,-150.67648058,0.00017958,2]
[394820787,1763986233208,-500.0,0.00017958,2]
[394820788,1763986233217,-500.0,0.00017972,2]
[394820789,1763986233227,-500.0,0.00017972,2]
[394820790,1763986233236,-171.30312499,0.00017973,2]
[394820791,1763986233246,-500.0,0.00017973,2]
[394820792,1763986233256,-410.80515512,0.00017973,2]
[394820793,1763986233266,-502.68868485,0.00017973,2]
[394820794,1763986233276,-500.0,0.00017973,2]
[394820795,1763986233286,-500.0,0.00017973,2]
[394820796,1763986233295,-500.0,0.00017973,2]
[394820797,1763986233305,-500.0,0.00017973,2]
[394820798,1763986233315,-500.0,0.00017973,2]
[394820799,1763986233324,-500.0,0.00017973,2]
[394820800,1763986233335,-500.28924973,0.00017973,2]
[394820801,1763986233345,-500.0,0.00017973,2]
[394820802,1763986233354,-500.0,0.00017973,2]
[394820803,1763986233364,-498.423967,0.00017973,2]
[394820804,1763986233373,-500.0,0.00017973,2]
[394820805,1763986233383,-500.0,0.00017973,2]
[394820806,1763986233393,-500.0,0.00017973,2]
[394820807,1763986233403,-500.0,0.00017973,2]
[394820808,1763986233413,-500.0,0.00017973,2]
[394820809,1763986233422,-3070.19953748,0.00017987,2]
[394820810,1763986233432,-186.95593864,0.0001799,2]
[394820811,1763986233442,-500.0,0.00017999,2]
[394820812,1763986233452,-500.0,0.00017999,2]
[394820813,1763986233462,-504.68813291,0.00017999,2]
[394820814,1763986233473,-500.0,0.00017999,2]
[394820815,1763986233482,-500.0,0.00017999,2]
[394820816,1763986233492,-500.0,0.00017999,2]
[394820817,1763986233502,-507.77972796,0.00017999,2]
[394820818,1763986233670,-500.0,0.00017999,2]
[394820819,1763986233680,-500.0,0.00017999,2]
[394820820,1763986233691,-500.0,0.00017999,2]
[394820821,1763986233701,-500.0,0.00017999,2]
[394820822,1763986233711,-500.0,0.00017999,2]
[394820823,1763986233720,-500.0,0.00017999,2]
[394820824,1763986233729,-500.0,0.00017999,2]
[394820825,1763986233739,-596.30435792,0.00017999,2]
[394820826,1763986233748,-525.4237283,0.00017999,2]
[394820827,1763986233758,-500.0,0.00017999,2]
[394820828,1763986233767,-506.97795181,0.00017999,2]
[394820829,1763986233776,-646.95864566,0.00017999,2]
[394820830,1763986233785,-500.0,0.00017999,2]
[394820831,1763986233795,-500.0,0.00017999,2]
[394820832,1763986233804,-500.0,0.00017999,2]
[394820833,1763986233813,-500.0,0.00017999,2]
[394820834,1763986233822,-159.80374366,0.00017999,2]
[394820835,1763986233831,-532.35,0.00017999,2]
[394820836,1763986233840,-500.0,0.00017999,2]
[394820837,1763986233850,-500.0,0.00017999,2]
[394820838,1763986233860,-500.0,0.00017999,2]
[394820839,1763986233872,-395.0,0.00017999,2]
[394820840,1763986233882,-500.0,0.00017999,2]
[394820841,1763986233892,-500.0,0.00017999,2]
[394820842,1763986233903,-500.0,0.00017999,2]
[394820843,1763986233912,-500.0,0.00017999,2]
[394820844,1763986233921,-500.0,0.00017999,2]
[394820845,1763986233931,-500.0,0.00017999,2]
[394820846,1763986233943,-500.0,0.00017999,2]
[394820847,1763986233952,-500.0,0.00017999,2]
[394820848,1763986233961,-166.00581416,0.00018,2]
[394820849,1763986233970,-1010.58945076,0.00018,2]
[394820850,1763986233979,-7761.74160533,0.00018,2]
[394820851,1763986233993,-5415.07010549,0.00018,2]
[394820852,1763986234004,-576.88174643,0.00018,2]
[394820853,1763986234015,-7326.05993224,0.00018,2]
[394820854,1763986234035,-803.67,0.00018,2]
[394820855,1763986234049,-87380.13406599,0.00018,2]
[394820856,1763986237580,-3869.63070379,0.00018,2]
[394820857,1763986237591,-892.52560866,0.00018,2]
[394820858,1763986237637,-735.85953622,0.00018,2]
[394820859,1763986237693,-325.72122255,0.00018,2]
[394820868,1763986239708,-3341.57165658,0.000179,2]
[394820869,1763986239718,-100.33795009,0.00018,2]
[394820870,1763986239731,-2567.40361483,0.00018,2]
[394820871,1763986239743,-564.11572434,0.00018,2]
[394820872,1763986239754,-2072.05180528,0.00018,2]
[394820873,1763986239777,-553239.09942008,0.00018,2]
[394820874,1763986239789,-446.94398386,0.00018,2]
[394820875,1763986239800,-1637.87841488,0.00018,2]
[394820876,1763986239812,-2260.67063397,0.00018,2]
[394820877,1763986239826,-4289.684502,0.00018,2]
[394820878,1763986239837,-844.27,0.00018,2]
[394820879,1763986239849,-1372.25000002,0.00018,2]
[394820880,1763986239862,-2661.33462459,0.00018,2]
[394820881,1763986239876,-3230434.24311032,0.00018,2]
[394820882,1763986239929,-10494.41678117,0.00018,2]
[394820883,1763986239943,-20641.96682318,0.00018,2]
[394820884,1763986239954,-8053.16080681,0.00018,2]
[394820885,1763986239983,-18492.04635029,0.00018,2]
[394820886,1763986240090,-500.0,0.00018,2]
[394820887,1763986240100,-250496.62956897,0.00018,2]
[394820899,1763986243466,-120077.76778928,0.00018,2]
[394820900,1763986244319,-3411.37260033,0.00018,2]
[394820901,1763986244331,-3681.900821,0.00018,2]
[394820902,1763986244344,-648.93851997,0.00018,2]
[394820903,1763986244358,-40.7880587,0.00018,2]